bitfinex-derivatives/quotes_ETHF0:USTF0_20240829
["timestamp","ask_amount","ask_price","bid_price","bid_amount"]
[1724949576369,4.08672355,2571.8,2571.7,0.39454136]
[1724949577984,0.8883,2572.0,2571.9,0.38868]
[1724949578285,5.17404957,2572.0,2571.9,0.38868]
[1724949579682,0.38868,2571.9,2571.8,0.38868]
[1724949580088,1.27697,2572.0,2571.9,0.38868]
[1724949580491,5.61528073,2572.0,2571.9,0.38868]
[1724949581691,0.38868,2571.9,2571.8,0.38868]
[1724949582087,4.67530021,2571.9,2571.8,0.38868]
[1724949582985,0.38869,2571.8,2571.7,0.39453136]
[1724949583387,4.66022293,2571.8,2571.7,0.39453136]
[1724949584090,4.66022293,2571.8,2571.7,0.39454136]
[1724949586594,4.66022293,2571.8,2571.7,0.00583136]
[1724949587091,10.49250293,2571.8,2571.7,0.00583136]
[1724949587306,0.38877,2571.3,2571.1,0.9422]
[1724949587594,0.38877,2571.3,2571.2,0.38877]
[1724949587997,4.64669373,2571.3,2571.2,0.38877]
[1724949591390,4.25792373,2571.3,2571.2,0.38877]
[1724949593705,4.64669373,2571.3,2571.2,0.38877]
[1724949593996,4.25792373,2571.3,2571.2,0.38877]
[1724949594999,4.64669373,2571.3,2571.2,0.38878]
[1724949595197,1.36085,2571.0,2570.9,3.2078]
[1724949595404,0.38884,2570.9,2570.8,0.38883]
[1724949595606,0.85394,2570.9,2570.8,0.38883]
[1724949595795,4.97437795,2570.9,2570.8,0.38883]
[1724949596196,0.38885,2570.8,2570.7,0.38885]
[1724949596500,4.47669995,2570.8,2570.7,0.38885]
[1724949598104,4.08784995,2570.8,2570.7,0.38885]
[1724949599108,4.47668995,2570.8,2570.7,0.38885]
[1724949599493,4.08784995,2570.8,2570.7,0.38885]
[1724949599805,4.08784995,2570.8,2570.6,40.8]
[1724949600006,0.38889,2570.5,2570.4,3.2078]
[1724949600501,4.63564171,2570.5,2570.4,3.2078]
[1724949601605,8.52604171,2570.5,2570.4,3.2078]
[1724949601804,4.63564171,2570.5,2570.4,3.2078]
[1724949602009,8.52604171,2570.5,2570.4,3.2078]
[1724949602209,0.38892,2570.4,2570.2,0.38893]
[1724949602399,0.85712,2570.4,2570.0,42.74432205]
[1724949602710,4.42802504,2570.3,2570.2,0.38893]
[1724949603711,0.00583136,2570.7,2570.2,11.43054]
[1724949603897,0.00583136,2570.7,2570.6,0.38887]
[1724949604204,4.24347471,2570.7,2570.6,0.38887]
[1724949604612,0.00583136,2570.7,2570.6,8.45926]
[1724949604910,0.00583136,2570.7,2570.6,8.42227]
[1724949605410,0.00583136,2570.7,2570.6,54.12770257]
[1724949605613,0.3888,2571.2,2571.0,0.3888]
[1724949605815,0.4765,2571.2,2571.1,0.3888]
[1724949606204,4.65078828,2571.2,2571.1,0.3888]
[1724949606900,5.03956828,2571.2,2571.1,0.3888]
[1724949607405,0.00583136,2571.4,2571.3,0.38877]
[1724949607612,0.00583136,2571.4,2571.3,4.27757]
[1724949607812,0.00583136,2571.4,2571.3,8.65283529]
[1724949608308,0.00583136,2571.4,2571.3,4.27757]
[1724949609408,4.39365999,2571.4,2571.3,0.38877]
[1724949610606,0.00583136,2571.4,2571.3,4.27757]
[1724949611005,0.00583136,2571.4,2571.3,5.2495]
[1724949611418,0.00583136,2571.4,2571.3,4.27757]
[1724949611605,0.39458136,2571.4,2571.3,0.38877]
[1724949611806,4.58926676,2571.4,2571.3,0.38877]
[1724949612105,4.20051676,2571.4,2571.3,0.38877]
[1724949612315,4.58926676,2571.4,2571.3,1.40403529]
[1724949612510,4.58926676,2571.4,2571.3,0.38877]
[1724949612719,4.20051676,2571.4,2571.3,1.40403529]
[1724949613205,0.97175,2571.8,2571.7,0.3887]
[1724949613206,0.38869,2571.8,2571.7,0.3887]
[1724949613511,4.60944279,2571.8,2571.7,0.3887]
[1724949613901,4.22075279,2571.8,2571.4,1.01587669]
[1724949614110,0.38873,2571.6,2571.5,0.38873]
[1724949614511,4.60948279,2571.6,2571.5,0.38873]
[1724949617210,0.38875,2571.4,2571.3,1.01587669]
[1724949617519,0.97193,2571.3,2571.1,1.01587669]
[1724949617713,0.38881,2571.0,2570.9,0.00583136]
[1724949618218,1.36085,2571.0,2570.9,0.00583136]
[1724949618523,0.97208,2570.9,2570.5,1.01587669]
[1724949618814,0.97208,2570.9,2570.4,1.40477669]
[1724949618815,0.38888,2570.6,2570.4,1.40477669]
[1724949619020,0.38889,2570.5,2570.4,1.01587669]
[1724949619204,0.3889,2570.4,2570.3,1.01587669]
[1724949619406,12.63507266,2570.5,2570.1,1.02170805]
[1724949619615,0.38893,2570.2,2570.1,0.00583136]
[1724949620116,4.80137266,2570.2,2570.1,0.00583136]
[1724949621417,5.16612269,2570.2,2569.9,4.61264669]
[1724949621617,0.36475003,2570.1,2569.9,1.40484669]
[1724949621816,4.41244266,2570.2,2570.0,1.01587669]
[1724949622118,4.7403192,2570.2,2569.9,1.17856036]
[1724949622318,4.7403192,2570.2,2570.0,0.38896]
[1724949623315,4.41244266,2570.2,2570.1,0.38895]
[1724949623616,3.2078,2570.5,2570.3,0.38891]
[1724949623921,3.2078,2570.5,2570.4,0.3889]
[1724949624511,3.2078,2570.5,2570.3,3.74891]
[1724949624706,3.59669,2570.5,2570.3,0.38891]
[1724949624920,3.2078,2570.5,2570.3,0.38891]
[1724949625418,3.2078,2570.5,2570.4,0.3889]
[1724949625920,3.59669,2570.5,2570.3,3.74891]
[1724949626310,3.2078,2570.5,2570.4,0.3889]
[1724949626917,3.2078,2570.5,2570.4,41.1889]
[1724949629009,3.2078,2570.5,2570.4,46.05157]
[1724949629418,0.00583136,2570.6,2570.5,0.38889]
[1724949629618,0.00583136,2570.6,2570.5,8.61152]
[1724949629820,0.00583136,2570.6,2570.5,9.08402]
[1724949630120,0.00583136,2570.6,2570.5,11.02882311]
[1724949630318,0.00583136,2570.6,2570.5,11.6365805]
[1724949631214,0.00583136,2570.6,2570.5,52.4365805]
[1724949633528,0.00583136,2570.6,2570.5,52.43658446]
[1724949634514,2.6302003,2570.8,2570.7,0.38886]
[1724949634820,0.38883,2570.9,2570.8,0.38884]
[1724949635210,4.88833398,2570.9,2570.8,0.38884]
[1724949636723,3.2078,2571.0,2570.9,0.38883]
[1724949636915,3.2078,2571.0,2570.9,1.36091]
[1724949637116,3.2078,2571.0,2570.9,4.27843]
[1724949637719,3.2078,2571.0,2570.9,4.88613657]
[1724949637917,3.59661,2571.0,2570.9,4.88613657]
[1724949638117,3.2078,2571.0,2570.9,5.85821657]
[1724949638317,0.00583136,2571.1,2571.0,2.33289]
[1724949638516,0.00583136,2571.1,2571.0,12.13469727]
[1724949638817,0.00583136,2571.1,2571.0,12.13469614]
[1724949639324,0.00583136,2571.1,2571.0,13.01415738]
[1724949639521,3.2078,2571.4,2571.3,0.38877]
[1724949639716,3.2078,2571.4,2571.3,0.99643535]
[1724949640026,3.2078,2571.4,2571.3,4.88523535]
[1724949640922,3.2078,2571.4,2571.3,4.88518347]
[1724949641221,3.2078,2571.4,2571.3,5.2495]
[1724949641526,0.00583136,2571.6,2571.5,0.38874]
[1724949641819,0.00583136,2571.6,2571.5,8.15152093]
[1724949642120,0.00583136,2571.6,2571.5,12.04031766]
[1724949642621,0.00583136,2571.6,2571.5,11.06846766]
[1724949643020,0.00583136,2571.6,2571.5,11.06843219]
[1724949643225,0.00583136,2571.6,2571.5,17.16094901]
[1724949643518,0.00583136,2571.6,2571.5,17.16088615]
[1724949643925,0.00583136,2571.6,2571.5,17.16084366]
[1724949644432,0.00583136,2571.6,2571.5,57.96084366]
[1724949645432,3.2078,2572.0,2571.9,0.38868]
[1724949645927,0.88213,2572.2,2572.0,0.38866]
[1724949646420,4.11935619,2572.1,2572.0,0.38866]
[1724949646616,0.4935,2572.2,2572.0,0.38866]
[1724949646816,0.4935,2572.2,2572.1,0.38865]
[1724949647029,0.4935,2572.2,2572.0,0.38865]
[1724949647521,0.88213,2572.2,2572.0,0.38865]
[1724949648117,0.88213,2572.2,2572.1,0.38865]
[1724949648118,0.4935,2572.2,2572.1,0.38865]
[1724949648314,4.09144136,2572.4,2572.2,0.38862]
[1724949648526,4.09144136,2572.4,2572.1,0.38865]
[1724949648725,4.50253644,2572.3,2572.2,0.38863]
[1724949649417,4.89115644,2572.3,2572.2,0.38863]
[1724949649613,4.89115644,2572.3,2572.1,0.38864]
[1724949649818,4.89115644,2572.3,2572.2,0.38863]
[1724949649819,4.50253644,2572.3,2572.2,0.38863]
[1724949650325,0.88364136,2572.4,2572.3,0.38862]
[1724949650326,0.00583136,2572.4,2572.3,0.38862]
[1724949650718,0.00583136,2572.4,2572.3,4.27582]
[1724949651525,0.00583136,2572.4,2572.3,5.24737]
[1724949652021,0.00583136,2572.4,2572.3,17.83420232]
[1724949652226,3.2078,2573.1,2573.0,0.38851]
[1724949652733,3.2078,2573.1,2572.9,3.36]
[1724949652932,3.2078,2573.1,2572.9,3.74852]
[1724949653120,3.2078,2573.1,2573.0,0.38851]
[1724949653321,3.5963,2573.1,2572.9,3.74852]
[1724949653523,3.2078,2573.1,2573.0,0.38851]
[1724949654229,0.38851,2573.0,2572.8,0.38854]
[1724949654725,0.38853,2572.9,2572.7,3.74854]
[1724949654923,0.38853,2572.9,2572.6,0.4264]
[1724949654924,4.50744787,2572.9,2572.6,0.38856]
[1724949655122,0.38854,2572.9,2572.5,6.11331781]
[1724949655333,0.38852,2573.0,2572.5,6.11331781]
[1724949655635,4.50744787,2572.8,2572.6,0.38856]
[1724949655827,4.45829267,2572.9,2572.5,3.36]
[1724949656129,0.38853,2572.9,2572.7,0.38856]
[1724949656338,4.06976267,2572.8,2572.7,0.38856]
[1724949657137,4.06976267,2572.8,2572.7,7.63576]
[1724949657433,3.5963,2573.1,2572.9,0.38852]
[1724949657744,3.5963,2573.1,2572.7,7.2472]
[1724949657745,4.72995944,2573.0,2572.8,0.38853]
[1724949657929,0.38856,2572.7,2572.6,3.2078]
[1724949658125,0.38855,2572.8,2572.6,3.59637]
[1724949658429,4.34144944,2572.7,2572.6,3.59636]
[1724949658630,4.73000944,2572.7,2572.6,3.59636]
[1724949658836,5.16000944,2572.7,2572.6,3.59636]
[1724949659132,4.77144944,2572.7,2572.6,3.59636]
[1724949659331,3.2078,2573.1,2572.9,0.38852]
[1724949659635,4.90675642,2573.0,2572.9,0.38852]
[1724949660437,4.90675642,2573.0,2572.8,0.38853]
[1724949660632,4.90675642,2573.0,2572.9,0.38853]
[1724949660837,5.29526642,2573.0,2572.9,0.38853]
[1724949661437,0.43,2573.0,2572.9,7.63493]
[1724949661732,3.2078,2573.1,2573.0,0.38851]
[1724949662039,3.2078,2573.1,2573.0,0.81881]
[1724949662337,3.2078,2573.1,2573.0,4.70521]
[1724949663437,0.00583136,2573.3,2573.2,0.38848]
[1724949663635,0.39430136,2573.3,2573.2,3.36]
[1724949663834,0.38848,2573.2,2573.1,0.38849]
[1724949664039,4.4417586,2573.3,2573.2,0.38848]
[1724949664931,0.39431136,2573.3,2573.2,0.38848]
[1724949666332,0.00583136,2573.3,2573.2,0.38848]
[1724949666637,0.00583136,2573.3,2573.2,3.74848]
[1724949667134,0.0014625,2573.3,2573.2,8.60609]
[1724949667442,0.0014625,2573.3,2573.2,49.40609]
[1724949667735,0.0014625,2573.3,2573.2,48.43488]
[1724949668527,0.0014625,2573.3,2573.2,54.88188]
[1724949668934,0.0014625,2573.3,2573.2,55.85309]
[1724949669638,0.0014625,2573.3,2573.2,54.88188]
[1724949669839,0.3899325,2573.3,2573.2,3.36]
[1724949670146,0.3885,2573.1,2573.0,3.36]
[1724949671144,0.3885,2573.1,2573.0,3.74851]
[1724949671440,0.4409,2573.2,2573.1,0.3885]
[1724949672948,0.4409,2573.2,2573.0,3.36]
[1724949672949,0.3885,2573.1,2573.0,3.7485]
[1724949673138,0.4272,2573.1,2573.0,3.7485]
[1724949673449,0.8157,2573.1,2573.0,3.7485]
[1724949673645,0.4272,2573.1,2573.0,3.7485]
[1724949673946,0.8157,2573.1,2573.0,3.7485]
[1724949674147,0.4272,2573.1,2573.0,3.7485]
[1724949675842,0.82939,2573.2,2573.1,0.3885]
[1724949676042,0.3899325,2573.3,2573.2,0.38848]
[1724949676348,0.3899325,2573.3,2573.2,3.74848]
[1724949677643,0.3899325,2573.3,2573.2,3.36]
[1724949677845,0.3899325,2573.3,2573.2,3.74848]
[1724949678841,1.3611025,2573.3,2573.2,3.36]
[1724949680448,1.35975,2573.1,2573.0,3.36]
[1724949681547,0.38853,2572.9,2572.8,3.74853]
[1724949681845,0.38859,2572.5,2572.4,3.14191781]
[1724949682145,0.3886,2572.4,2572.3,3.36]
[1724949682550,3.5964,2572.4,2572.3,3.36]
[1724949682756,1.36011,2572.4,2572.3,3.36]
[1724949682943,0.38863,2572.2,2572.1,3.36]
[1724949685549,0.38863,2572.2,2572.1,3.74865]
[1724949686040,0.38863,2572.2,2572.1,3.36]
[1724949686350,0.38863,2572.2,2572.1,3.74865]
[1724949690749,1.30913,2572.3,2572.2,0.38863]
[1724949692153,0.97159,2572.2,2572.0,0.38865]
[1724949692451,0.38865,2572.1,2572.0,0.38865]
[1724949692651,0.38865,2572.1,2572.0,0.99607115]
[1724949692847,0.38865,2572.1,2572.0,0.38865]
[1724949694359,1.89205,2572.3,2572.0,0.60743122]
[1724949694558,0.38865,2572.2,2572.1,3.74864]
[1724949695353,1.36024,2572.2,2572.1,3.36]
[1724949697063,0.38865,2572.2,2572.1,3.74865]
[1724949699764,0.9205,2572.3,2572.2,0.38863]
[1724949699966,3.2078,2572.4,2572.3,0.38862]
[1724949700167,0.38863,2572.3,2572.2,0.38862]
[1724949700962,3.59641,2572.4,2572.3,0.38862]
[1724949702460,3.2078,2572.4,2572.3,0.38862]
[1724949702959,3.2078,2572.4,2572.3,0.84182]
[1724949703664,3.2078,2572.4,2572.3,5.17337]
[1724949704869,3.2078,2572.4,2572.3,4.20182]
[1724949706166,3.2078,2572.4,2572.3,5.17337]
[1724949706870,0.38858,2572.6,2572.3,5.17337]
[1724949707065,0.8882,2572.7,2572.4,0.9256]
[1724949707267,4.19043559,2572.6,2572.5,3.36]
[1724949707565,0.38856,2572.7,2572.6,0.38857]
[1724949708565,4.17912,2572.9,2572.6,0.38857]
[1724949708566,3.2078,2572.9,2572.6,0.38857]
[1724949709076,3.2078,2572.9,2572.5,3.36]
[1724949709077,0.38856,2572.8,2572.7,0.38854]
[1724949709769,0.38856,2572.8,2572.5,4.33146]
[1724949709770,3.59634,2572.9,2572.8,0.38854]
[1724949709966,4.56766,2572.9,2572.8,0.38854]
[1724949711164,4.56766,2572.9,2572.5,4.33146]
[1724949711165,0.38856,2572.8,2572.7,0.38854]
[1724949712966,0.38859,2572.5,2572.3,2.75331781]
[1724949713274,1.36011,2572.4,2572.3,2.75331781]
[1724949713572,1.82151,2572.4,2572.3,2.75331781]
[1724949713777,11.70871,2572.4,2572.3,2.75331781]
[1724949713963,15.88660064,2572.4,2572.3,2.75331781]
[1724949714270,1.36032,2572.0,2571.9,0.00583136]
[1724949714669,9.42621064,2572.0,2571.9,0.00583136]
[1724949718270,4.56655064,2572.0,2571.9,0.00583136]
[1724949720081,5.53821064,2572.0,2571.9,0.00583136]
[1724949720472,9.42621064,2572.0,2571.9,0.00583136]
[1724949720672,0.38875,2571.4,2571.3,1.90559962]
[1724949720881,0.38875,2571.5,2571.4,0.38875]
[1724949721076,0.38875,2571.4,2571.3,4.35638112]
[1724949721377,0.38875,2571.4,2571.3,3.96760863]
[1724949721876,0.38875,2571.4,2571.3,3.96764393]
[1724949722483,0.38875,2571.4,2571.3,4.35639222]
[1724949723485,0.38875,2571.4,2571.3,6.30072176]
[1724949723684,0.38875,2571.4,2571.3,6.30071572]
[1724949724084,0.38875,2571.4,2571.3,4.35639222]
[1724949724486,0.38875,2571.4,2571.3,5.91196706]
[1724949724785,0.38875,2571.4,2571.3,3.96762222]
[1724949725185,0.38875,2571.4,2571.3,4.35639222]
[1724949725479,0.38875,2571.4,2571.3,6.30074662]
[1724949725674,4.7417844,2571.4,2571.3,3.96762222]
[1724949726285,5.7136744,2571.4,2571.3,3.96762222]
[1724949726482,5.7136744,2571.4,2571.3,5.91198541]
[1724949727273,5.7136744,2571.4,2571.3,3.96762222]
[1724949727474,5.7136744,2571.4,2571.3,5.91198706]
[1724949728482,5.7136744,2571.4,2571.3,3.96762222]
[1724949728683,1.36074,2571.2,2571.1,0.00583136]
[1724949728876,2.3327,2571.2,2571.1,0.00583136]
[1724949729072,10.65652703,2571.2,2571.1,0.00583136]
[1724949729683,9.68456703,2571.2,2571.1,0.00583136]
[1724949730382,5.79496703,2571.2,2571.1,0.39463136]
[1724949730580,4.82300703,2571.2,2571.1,0.39463136]
[1724949730780,3.2078,2571.3,2571.2,0.38878]
[1724949730986,3.2078,2571.3,2571.2,11.60354021]
[1724949731182,2.23560732,2571.3,2571.2,13.9998212]
[1724949731384,2.23560732,2571.3,2571.2,54.7998212]
[1724949732186,2.23560732,2571.3,2571.2,53.91957983]
[1724949732578,0.38874,2571.5,2571.2,53.53079983]
[1724949732791,0.38874,2571.5,2571.4,0.38875]
[1724949733086,0.87376136,2571.6,2571.5,0.38874]
[1724949733492,0.39456136,2571.6,2571.5,0.38874]
[1724949734287,0.00583136,2571.6,2571.5,0.38874]
[1724949734890,0.00583136,2571.6,2571.5,9.2169366]
[1724949735285,0.00583136,2571.6,2571.5,8.2450866]
[1724949735684,0.00583136,2571.6,2571.5,7.63754]
[1724949736389,0.00583136,2571.6,2571.5,3.74874]
[1724949736894,0.00583136,2571.6,2571.5,7.63754]
[1724949737187,0.00583136,2571.6,2571.5,8.24508656]
[1724949740287,0.00583136,2571.6,2571.5,8.24508753]
[1724949742096,0.00583136,2571.6,2571.5,10.23196592]
[1724949742491,0.00583136,2571.6,2571.5,9.26011592]
[1724949742693,0.00583136,2571.6,2571.5,8.24508753]
[1724949742888,5.25516136,2571.6,2571.5,0.60754753]
[1724949743089,0.38875,2571.4,2571.3,8.43778839]
[1724949743291,4.48022018,2571.6,2571.3,8.65661864]
[1724949743485,0.00583136,2571.6,2571.5,4.72059]
[1724949743803,0.00583136,2571.6,2571.5,6.3431474]
[1724949743997,0.00583136,2571.6,2571.5,2.0112974]
[1724949744188,0.00583136,2571.6,2571.2,44.2456841]
[1724949744189,0.97185,2571.5,2571.2,1.01502839]
[1724949744389,0.97185,2571.5,2571.1,3.55531508]
[1724949744390,1.36074,2571.2,2571.1,0.00583136]
[1724949744791,9.47816961,2571.2,2571.1,0.00583136]
[1724949746398,5.58856961,2571.2,2571.1,0.00583136]
[1724949746701,9.47816961,2571.2,2571.1,0.00583136]
[1724949747005,9.65438248,2571.2,2571.1,0.00583136]
[1724949747700,16.62634248,2571.2,2571.1,0.00583136]
[1724949747907,10.62634248,2571.2,2571.1,0.00583136]
[1724949748091,15.65438248,2571.2,2571.1,0.00583136]
[1724949748299,9.65438248,2571.2,2571.1,0.00583136]
[1724949748798,9.47816961,2571.2,2571.1,0.00583136]
[1724949751297,15.47816961,2571.2,2571.1,0.00583136]
[1724949752803,16.45012961,2571.2,2571.1,0.00583136]
[1724949754010,10.45012961,2571.2,2571.1,0.00583136]
[1724949755008,9.47816961,2571.2,2571.1,0.00583136]
[1724949755317,5.58856961,2571.2,2571.1,0.00583136]
[1724949755513,9.47816961,2571.2,2571.1,0.00583136]
[1724949755911,9.47816961,2571.2,2571.1,0.39463136]
[1724949756208,5.58856961,2571.2,2571.1,0.00583136]
[1724949756402,9.47816961,2571.2,2571.1,0.00583136]
[1724949756809,5.58856961,2571.2,2571.1,0.00583136]
[1724949757005,5.58856961,2571.2,2571.1,0.39463136]
[1724949757006,4.22782961,2571.2,2571.1,0.39463136]
[1724949757512,4.61660961,2571.2,2571.1,0.39463136]
[1724949758211,4.61660961,2571.2,2571.1,1.00232519]
[1724949758708,4.61660961,2571.2,2571.1,0.39463136]
[1724949759210,4.61660961,2571.2,2571.1,1.00233171]
[1724949759408,8.50620961,2571.2,2571.1,1.00233171]
[1724949759607,4.61660961,2571.2,2571.1,1.00233171]
[1724949759813,4.61660961,2571.2,2571.1,0.39463136]
[1724949760015,8.50620961,2571.2,2571.1,2.01734807]
[1724949760209,4.61660961,2571.2,2571.1,1.00231968]
[1724949760410,8.50620961,2571.2,2571.1,1.00231968]
[1724949760908,4.61660961,2571.2,2571.1,1.00231968]
[1724949761810,4.22782961,2571.2,2571.1,1.00231968]
[1724949762013,3.2078,2571.3,2571.2,0.38878]
[1724949762208,0.00583136,2571.6,2571.5,0.38874]
[1724949762518,0.00583136,2571.6,2571.5,9.66867966]
[1724949762716,0.00583136,2571.6,2571.5,14.07328414]
[1724949763014,0.00583136,2571.6,2571.5,13.05778691]
[1724949763217,0.00583136,2571.6,2571.5,15.56982172]
[1724949763405,0.00583136,2571.6,2571.5,14.59797172]
[1724949763604,0.00583136,2571.6,2571.5,11.54016961]
[1724949764410,0.00583136,2571.6,2571.5,11.54002051]
[1724949764710,0.00583136,2571.6,2571.5,10.05314371]
[1724949764916,0.00583136,2571.6,2571.5,11.54003317]
[1724949769134,0.38867,2572.0,2571.9,0.38866]
[1724949769312,3.2078,2572.1,2572.0,0.38866]
[1724949769515,3.2078,2572.1,2572.0,1.47014976]
[1724949769708,3.59646,2572.1,2572.0,1.97484773]
[1724949770120,3.59646,2572.1,2572.0,1.36736]
[1724949770324,3.59646,2572.1,2572.0,1.97484675]
[1724949770616,3.59646,2572.1,2572.0,2.99164792]
[1724949771120,3.2078,2572.1,2572.0,1.97484675]
[1724949771510,0.00583136,2572.3,2572.2,0.38863]
[1724949771713,0.00583136,2572.3,2572.2,7.27140227]
[1724949772023,0.00583136,2572.3,2572.2,12.03862627]
[1724949772221,0.00583136,2572.3,2572.2,13.56241126]
[1724949772420,0.00146313,2572.3,2572.2,12.59082126]
[1724949772623,0.00146313,2572.3,2572.2,12.59080619]
[1724949772817,0.00146313,2572.3,2572.2,11.10411402]
[1724949773221,0.00146313,2572.3,2572.2,13.56226685]
[1724949773423,0.00146313,2572.3,2572.2,12.59067685]
[1724949773622,0.00146313,2572.3,2572.2,11.71147872]
[1724949773922,0.00146313,2572.3,2572.2,10.64698545]
[1724949774115,0.00146313,2572.3,2572.2,11.71132376]
[1724949774317,0.00146313,2572.3,2572.2,11.20264238]
[1724949775019,0.00146313,2572.3,2572.2,11.71132376]
[1724949775317,0.00146313,2572.3,2572.2,12.17395288]
[1724949775517,0.00146313,2572.3,2572.2,11.15912526]
[1724949775821,0.00146313,2572.3,2572.2,12.68291376]
[1724949776017,0.00146313,2572.3,2572.2,13.65450376]
[1724949776219,0.00146313,2572.3,2572.2,11.52335056]
[1724949776417,0.00146313,2572.3,2572.2,13.65448117]
[1724949776616,0.00146313,2572.3,2572.2,13.14521166]
[1724949777322,0.00146313,2572.3,2572.2,52.0016711]
[1724949777838,0.00146313,2572.3,2572.2,58.93064248]
[1724949778128,0.00146313,2572.3,2572.2,60.45443098]
[1724949778929,0.00146313,2572.3,2572.2,64.9764407]
[1724949779218,0.00146313,2572.3,2572.2,64.09729221]
[1724949779622,0.00146313,2572.3,2572.2,63.4899501]
[1724949779825,3.2078,2573.1,2572.2,61.76545577]
[1724949780124,0.38847,2573.4,2573.0,3.36]
[1724949780313,3.2078,2573.4,2572.9,6.5678]
[1724949780517,1.35979,2573.0,2572.9,3.36]
[1724949780711,0.38851,2573.0,2572.9,3.36]
[1724949781118,0.38854,2572.8,2572.7,3.25624917]
[1724949781322,0.38854,2572.8,2572.7,0.50293136]
[1724949782016,0.38854,2572.8,2572.7,0.89149136]
[1724949782715,0.38854,2572.8,2572.7,0.50293136]
[1724949782919,0.38854,2572.8,2572.7,0.00583136]
[1724949783128,0.38854,2572.8,2572.7,0.39439136]
[1724949783626,0.38854,2572.8,2572.7,0.00583136]
[1724949785922,1.3599,2572.8,2572.7,0.00583136]
[1724949790721,2.33126,2572.8,2572.7,0.00583136]
[1724949790924,10.26580491,2572.8,2572.7,0.00583136]
[1724949791427,10.44483027,2572.8,2572.7,0.00583136]
[1724949795029,10.26580491,2572.8,2572.7,0.00583136]
[1724949795525,10.26580491,2572.8,2572.7,3.75439136]
[1724949795526,4.04734491,2572.8,2572.7,3.75439136]
[1724949795827,3.2078,2572.9,2572.8,1.3599]
[1724949796028,0.00535006,2573.2,2573.1,0.3885]
[1724949796330,0.00535006,2573.2,2573.1,3.7485]
[1724949796631,3.89175006,2573.2,2572.9,3.36]
[1724949796817,0.38851,2573.0,2572.9,3.36]
[1724949797228,0.38854,2572.8,2572.7,3.36583136]
[1724949799924,9.44232685,2572.8,2572.7,3.36583136]
[1724949800226,9.44232685,2572.8,2572.7,0.00583136]
[1724949800428,4.58376685,2572.8,2572.7,0.00583136]
[1724949801127,8.47096685,2572.8,2572.7,0.00583136]
[1724949802831,0.38858,2572.6,2572.4,0.38859]
[1724949803036,0.5088,2572.5,2572.4,0.38859]
[1724949803236,4.12327606,2572.5,2572.4,1.3601]
[1724949803430,0.474,2572.7,2572.6,0.38857]
[1724949803733,0.474,2572.7,2572.6,3.74857]
[1724949805334,3.2078,2573.0,2572.8,0.97136]
[1724949805535,4.174,2574.1,2573.1,0.3885]
[1724949805536,0.38846,2573.4,2573.1,0.3885]
[1724949805730,0.38847,2573.3,2573.1,0.3885]
[1724949807135,0.39383006,2573.2,2573.1,0.3885]
[1724949807438,0.38851,2573.0,2572.9,3.74852]
[1724949807632,0.38851,2573.0,2572.9,4.35576298]
[1724949807833,0.9685,2573.1,2572.9,3.36]
[1724949808028,1.357,2573.1,2573.0,0.38851]
[1724949808431,5.81649976,2573.1,2573.0,0.38851]
[1724949808832,5.42799976,2573.1,2573.0,0.38851]
[1724949809236,5.42799976,2573.1,2573.0,0.99573127]
[1724949809637,5.81649976,2573.1,2573.0,0.99573481]
[1724949809837,5.81649976,2573.1,2573.0,0.38851]
[1724949810035,5.81649976,2573.1,2573.0,0.99573542]
[1724949810236,5.81649976,2573.1,2573.0,2.00926176]
[1724949810741,5.81649976,2573.1,2573.0,0.99573542]
[1724949811127,5.81649976,2573.1,2573.0,2.00926176]
[1724949811441,5.81649976,2573.1,2573.0,0.99573542]
[1724949811639,5.81649976,2573.1,2573.0,0.38851]
[1724949811837,5.81649976,2573.1,2573.0,1.40203634]
[1724949812037,4.45949976,2573.1,2573.0,1.40203634]
[1724949812239,0.00535006,2573.2,2573.1,1.35975]
[1724949812437,0.00535006,2573.2,2573.1,5.43383354]
[1724949812736,0.00535006,2573.2,2573.1,6.31283206]
[1724949812932,0.00535006,2573.2,2573.1,11.17048206]
[1724949813244,3.2078,2573.5,2573.4,0.38845]
[1724949813440,3.2078,2573.5,2573.4,7.82258565]
[1724949813743,3.2078,2573.5,2573.4,48.11436216]
[1724949813936,3.2078,2573.5,2573.4,47.09845325]
[1724949814138,3.2078,2573.5,2573.4,48.62226819]
[1724949815038,3.2078,2573.5,2573.4,48.11431454]
[1724949815243,3.2078,2573.5,2573.4,44.75431959]
[1724949815443,7.76882944,2573.5,2573.4,1.62300255]
[1724949816741,4.56102944,2573.5,2573.4,1.62300255]
[1724949818041,4.56102944,2573.5,2573.4,0.60713621]
[1724949818648,4.56102944,2573.5,2573.3,1.01586634]
[1724949818649,0.38845,2573.4,2573.3,1.01586634]
[1724949818944,0.38845,2573.4,2573.3,2.01150655]
[1724949819447,4.56104944,2573.5,2573.4,0.38845]
[1724949819740,4.09225136,2573.7,2573.5,0.38842]
[1724949819942,4.09225136,2573.7,2573.5,0.90152]
[1724949820141,4.71925698,2573.6,2573.5,0.90152]
[1724949820446,4.71925698,2573.6,2573.5,1.50863595]
[1724949820840,5.69031698,2573.6,2573.5,0.60711595]
[1724949821049,0.38845,2573.4,2573.3,1.01586634]
[1724949821248,0.38845,2573.4,2573.3,1.62304023]
[1724949821452,0.89085,2573.4,2573.3,1.62304023]
[1724949822044,4.77645,2573.4,2573.3,1.62304023]
[1724949822242,8.38576368,2573.4,2573.3,1.62304023]
[1724949822544,9.74534368,2573.4,2573.3,1.62304023]
[1724949823356,13.92427368,2573.4,2573.3,1.62304023]
[1724949823654,0.38848,2573.2,2573.1,1.01614509]
[1724949823844,0.38848,2573.2,2573.1,0.60722378]
[1724949824048,8.33757956,2573.2,2573.1,0.60722378]
[1724949824540,8.33757956,2573.2,2573.1,1.62336887]
[1724949824741,15.30878956,2573.2,2573.1,1.62336887]
[1724949824942,1.35979,2573.0,2572.9,1.01614509]
[1724949825250,1.35985,2572.9,2572.8,1.01614509]
[1724949825455,2.31725,2572.9,2572.8,1.01614509]
[1724949825751,6.6340985,2572.9,2572.8,4.44583866]
[1724949825951,10.5204985,2572.9,2572.8,4.44583866]
[1724949826153,10.5204985,2572.9,2572.8,1.623447]
[1724949826944,10.5204985,2572.9,2572.7,1.52381494]
[1724949826945,11.4918185,2572.9,2572.7,1.01614509]